bitfinex-derivatives/quotes_ETHF0:USTF0_20260203
["timestamp","ask_amount","ask_price","bid_price","bid_amount"]
[1770149236229,2.38395528,2196.2,2195.3,8.99854122]
[1770149236929,0.00364056,2196.2,2195.5,8.99854122]
[1770149237124,2.38395528,2197.2,2196.1,11.4601303]
[1770149237325,2.38395528,2197.0,2195.8,2.46158908]
[1770149237625,2.38395528,2196.8,2195.6,2.673]
[1770149237827,2.38395528,2196.6,2195.6,2.46158908]
[1770149238032,2.38859747,2196.6,2195.6,2.46158908]
[1770149238229,2.38859747,2196.6,2195.7,8.99854122]
[1770149238426,0.00464219,2196.6,2195.6,2.46158908]
[1770149238628,0.00464219,2196.6,2196.1,11.4601303]
[1770149239032,0.00464219,2196.6,2196.3,8.99854122]
[1770149239232,2.38395528,2197.2,2196.5,8.99854122]
[1770149239434,2.38395528,2197.2,2196.1,2.673]
[1770149239635,2.38395528,2197.2,2196.1,11.67154122]
[1770149239928,2.38395528,2197.2,2196.2,2.46158908]
[1770149240132,2.38857581,2197.2,2196.3,8.99854122]
[1770149240431,2.38857581,2197.2,2196.3,11.4601303]
[1770149240631,0.00462053,2197.2,2196.4,11.30432603]
[1770149241029,0.00462053,2197.2,2196.5,8.99854122]
[1770149242933,0.00462053,2197.2,2196.6,8.99854122]
[1770149243129,2.34393408,2197.7,2197.0,8.99854122]
[1770149243337,4.102,2197.9,2196.9,2.30578481]
[1770149243628,2.34393408,2197.8,2196.6,4.97878481]
[1770149243831,2.34393408,2197.8,2196.6,2.673]
[1770149244235,2.34768518,2197.8,2196.6,2.673]
[1770149244434,2.34768518,2197.8,2196.6,13.97732603]
[1770149244730,2.34768518,2197.8,2196.6,11.30432603]
[1770149245740,2.34768518,2197.8,2196.7,8.99854122]
[1770149246141,2.34768518,2197.8,2196.5,2.672]
[1770149246541,2.34768518,2197.8,2196.6,2.30578481]
[1770149246842,2.34768518,2197.8,2196.7,11.30432603]
[1770149247441,2.34768518,2197.8,2196.8,8.99854122]
[1770149247940,2.34768518,2197.8,2196.9,8.99854122]
[1770149248140,2.34768518,2197.8,2196.8,8.99854122]
[1770149248544,2.34393408,2197.7,2196.9,8.99854122]
[1770149248743,2.34393408,2197.7,2197.0,8.99854122]
[1770149248940,2.34393408,2197.7,2196.8,8.99854122]
[1770149249142,2.34393408,2197.6,2196.6,8.99854122]
[1770149249541,2.34393408,2197.6,2196.5,2.672]
[1770149249542,2.34393408,2197.5,2196.5,2.672]
[1770149249737,2.34393408,2197.5,2196.3,2.30578481]
[1770149249939,2.34393408,2197.5,2196.4,8.99854122]
[1770149250745,2.34393408,2197.5,2196.3,4.97778481]
[1770149250946,2.34393408,2197.5,2196.6,8.99854122]
[1770149251245,2.34393408,2197.5,2196.6,2.30578481]
[1770149251542,2.34768518,2197.8,2196.8,2.30578481]
[1770149251738,2.34768518,2197.8,2196.9,2.672]
[1770149251944,2.34768518,2197.8,2197.0,8.99854122]
[1770149252343,2.34768518,2197.8,2197.1,8.99854122]
[1770149252344,0.0037511,2197.8,2197.1,8.99854122]
[1770149252544,0.0037511,2197.8,2197.2,8.99854122]
[1770149252947,2.34768518,2197.8,2197.3,8.99854122]
[1770149253147,2.34768518,2197.8,2197.2,8.99854122]
[1770149253446,0.0037511,2197.8,2197.2,8.99854122]
[1770149253746,0.0037511,2197.8,2197.4,8.99854122]
[1770149253946,0.0037511,2197.8,2197.3,8.99854122]
[1770149254346,0.0037511,2197.8,2197.4,8.99854122]
[1770149254649,0.0037511,2197.8,2197.3,8.99854122]
[1770149255147,2.34393408,2198.1,2197.4,8.99854122]
[1770149255446,2.34393408,2198.1,2197.1,11.30432603]
[1770149255846,2.34393408,2198.1,2197.2,8.99854122]
[1770149256348,2.34732709,2198.1,2197.3,8.99854122]
[1770149256549,2.34732709,2198.1,2197.2,8.99854122]
[1770149256950,2.34393408,2197.8,2196.5,2.30578481]
[1770149257148,2.57173408,2197.7,2196.6,4.97678481]
[1770149257642,2.57173408,2197.7,2196.7,8.99854122]
[1770149257847,2.57173408,2197.7,2196.6,4.97678481]
[1770149258148,2.34393408,2197.5,2196.7,8.99854122]
[1770149258351,3.121,2197.6,2196.9,8.99854122]
[1770149258548,3.121,2197.6,2196.7,2.30578481]
[1770149258549,3.121,2197.6,2197.0,8.99854122]
[1770149258751,3.3488,2197.7,2197.0,8.99854122]
[1770149258948,3.3488,2197.7,2197.1,8.99854122]
[1770149259244,3.121,2197.7,2197.1,8.99854122]
[1770149259449,3.121,2197.7,2197.4,8.99854122]
[1770149259648,2.34393408,2197.6,2197.3,5.87485372]
[1770149259848,2.34393408,2197.6,2196.8,2.30578481]
[1770149260045,3.121,2197.7,2197.3,5.87485372]
[1770149260246,3.121,2197.7,2197.1,5.87485372]
[1770149260549,3.121,2197.7,2196.8,8.18063853]
[1770149260749,3.121,2197.7,2196.9,5.87485372]
[1770149260946,3.121,2197.7,2197.0,5.87485372]
[1770149261150,3.121,2197.7,2197.1,5.87485372]
[1770149261348,3.121,2197.7,2197.2,2.30578481]
[1770149261748,3.121,2197.7,2197.4,5.87485372]
[1770149262242,3.121,2197.7,2197.5,5.87485372]
[1770149262442,3.121,2197.7,2197.3,0.83052428]
[1770149262646,3.121,2197.7,2196.8,2.30578481]
[1770149262647,0.22782,2197.4,2196.3,5.2220758]
[1770149262847,0.22784,2197.3,2196.4,2.5510758]
[1770149263151,3.34884,2197.3,2196.4,2.5510758]
[1770149263348,2.89884,2197.2,2196.4,2.5510758]
[1770149263548,43.44179025,2197.2,2196.3,2.671]
[1770149263748,40.54295025,2197.1,2196.2,0.00428252]
[1770149264246,40.54295025,2197.1,2196.2,2.55535833]
[1770149264442,40.54295025,2197.2,2196.2,2.55535833]
[1770149264642,3.121,2197.3,2196.2,2.55535833]
[1770149265048,40.54295025,2197.6,2196.5,2.55107581]
[1770149265243,40.54295025,2197.5,2196.7,2.55107581]
[1770149266050,2.7189676,2197.6,2196.7,2.55107581]
[1770149266249,2.7189676,2197.4,2196.7,2.55107581]
[1770149266950,39.46197956,2197.6,2196.7,2.55107581]
[1770149267143,7.74971517,2197.7,2196.7,2.55107581]
[1770149267449,10.44171517,2197.7,2196.7,2.55107581]
[1770149268250,7.97751517,2197.6,2196.7,2.55107581]
[1770149268447,5.40578109,2197.5,2196.7,2.55107581]
[1770149268643,5.40578109,2197.5,2196.2,0.00428252]
[1770149268644,2.34393408,2197.4,2196.2,0.00428252]
[1770149268947,0.22788,2196.9,2196.2,0.00428252]
[1770149269151,8.09978109,2196.8,2196.2,0.00428252]
[1770149270153,10.44371517,2196.8,2196.2,0.00428252]
[1770149270751,5.03793408,2196.8,2196.2,0.00428252]
[1770149270951,10.44371517,2196.8,2195.8,2.30578481]
[1770149271153,5.40578109,2196.7,2195.8,2.30578481]
[1770149271652,2.30143438,2196.6,2195.5,5.13423711]
[1770149271852,5.40578109,2196.7,2195.6,2.46323711]
[1770149272154,3.121,2196.8,2195.6,2.46323711]
[1770149272551,5.40578109,2197.1,2195.8,2.46323711]
[1770149272756,8.11078109,2197.4,2196.0,2.69119711]
[1770149272953,5.40578109,2197.7,2196.4,2.46323711]
[1770149273355,7.70721547,2197.7,2196.4,2.46323711]
[1770149273553,5.40578109,2197.6,2196.4,2.46323711]
[1770149273955,7.70721547,2197.6,2196.4,2.46323711]
[1770149274157,7.93501547,2197.6,2196.4,2.46323711]
[1770149274559,5.63358109,2197.6,2196.4,2.46323711]
[1770149274760,5.40578109,2197.6,2196.4,2.46323711]
[1770149274954,5.40578109,2197.7,2196.4,2.46323711]
[1770149275260,5.4091741,2198.1,2196.9,2.43000057]
[1770149276259,8.10753904,2198.1,2196.9,2.43000057]
[1770149276465,5.40578109,2198.0,2196.9,2.43000057]
[1770149276660,5.40578109,2198.2,2196.9,2.43000057]
[1770149276864,5.40578109,2198.5,2197.1,2.43000057]
[1770149277157,9.22777331,2198.7,2197.1,2.43000057]
[1770149277158,5.40578109,2198.7,2197.3,2.43000057]
[1770149277864,2.47061494,2198.5,2197.3,2.43000057]
[1770149278057,5.40578109,2198.6,2197.3,2.43523286]
[1770149278463,2.69833494,2198.4,2197.3,2.43523286]
[1770149278665,2.47061494,2198.2,2197.3,2.43523286]
[1770149278864,0.22781,2197.5,2196.7,2.43000057]
[1770149279057,10.59439603,2197.9,2196.7,2.43000057]
[1770149280062,10.59439603,2197.9,2196.7,2.43341622]
[1770149280560,5.40578109,2197.9,2196.7,2.66130622]
[1770149280861,2.47061494,2198.4,2197.1,2.43000057]
[1770149281058,8.12878109,2198.5,2197.1,2.65785057]
[1770149281257,0.00396674,2198.7,2197.4,2.43000057]
[1770149281459,2.70228168,2198.7,2197.4,2.43000057]
[1770149281664,2.47061494,2198.6,2197.4,2.43000057]
[1770149281861,2.47061494,2198.4,2197.4,2.43000057]
[1770149282067,2.47061494,2198.3,2197.1,2.43000057]
[1770149282363,0.22779,2197.7,2196.8,2.43000057]
[1770149282665,5.42240494,2197.7,2196.8,2.43000057]
[1770149283660,2.724,2197.7,2196.8,2.43000057]
[1770149283864,8.13078109,2197.9,2196.8,2.43000057]
[1770149284069,10.60139603,2197.9,2196.8,2.43000057]
[1770149284269,2.47061494,2197.8,2196.8,2.43000057]
[1770149284564,2.69840494,2197.8,2196.7,0.00341565]
[1770149284864,0.22783,2197.4,2196.1,2.43000057]
[1770149285073,2.47061494,2197.1,2195.8,2.43000057]
[1770149285370,2.47061494,2197.1,2195.2,6.77799691]
[1770149285371,2.69851494,2196.7,2195.5,2.43000057]
[1770149285668,6.75715837,2197.1,2195.2,6.52900057]
[1770149285669,2.47061494,2196.5,2195.2,6.52900057]
[1770149285860,2.727,2196.4,2195.3,2.43000057]
[1770149286064,2.47061494,2196.1,2194.7,2.43000057]
[1770149286264,2.47061494,2195.9,2194.7,2.43000057]
[1770149286461,7.87639603,2196.2,2194.7,2.43000057]
[1770149286668,7.87639603,2196.2,2194.1,5.38723233]
[1770149286669,0.00445003,2196.4,2194.9,2.43000057]
[1770149287262,0.00445003,2196.4,2194.9,2.43576391]
[1770149287570,2.47506497,2196.4,2194.9,2.43576391]
[1770149288172,2.47061494,2196.2,2194.9,2.43576391]
[1770149288367,2.47061494,2196.0,2194.9,2.43576391]
[1770149288670,5.19761494,2196.0,2194.9,2.43576391]
[1770149288968,2.47061494,2195.9,2194.9,2.43576391]
[1770149289672,2.727,2196.0,2194.9,2.43576391]
[1770149290071,0.22796,2196.1,2194.9,2.43576391]
[1770149291171,0.00445003,2196.4,2194.9,2.43576391]
[1770149291872,2.47506497,2196.4,2194.9,2.43576391]
[1770149292469,2.47506497,2196.4,2195.1,2.43000057]
[1770149292470,0.00445003,2196.4,2195.1,2.43000057]
[1770149294370,0.22795,2196.2,2195.1,2.43000057]
[1770149294571,2.69860494,2195.8,2194.9,0.00576334]
[1770149294776,2.47061494,2195.6,2194.5,2.43000057]
[1770149294973,2.47061494,2195.6,2194.2,6.53100057]
[1770149295173,2.47061494,2195.6,2194.2,2.43000057]
[1770149295371,2.47061494,2195.1,2194.2,2.43000057]
[1770149295571,2.47061494,2195.1,2193.7,2.43000057]
[1770149295774,2.47061494,2195.1,2193.7,2.43402498]
[1770149295969,0.22805,2195.2,2193.7,2.43402498]
[1770149295970,2.47061494,2195.4,2193.7,2.43402498]
[1770149296476,5.42061494,2195.7,2193.8,2.43000057]
[1770149296871,5.42061494,2195.7,2194.0,2.43000057]
[1770149297470,4.101,2195.9,2194.1,2.71623233]
[1770149297774,6.57161494,2195.9,2194.4,2.43000057]
[1770149298281,2.47061494,2195.1,2193.8,2.43000057]
[1770149298778,2.47061494,2195.5,2193.8,2.43000057]
[1770149298980,2.47061494,2195.5,2194.0,2.43000057]
[1770149299374,2.69867494,2195.2,2194.0,2.43000057]
[1770149299772,2.47061494,2195.5,2194.0,2.43000057]
[1770149300380,2.69863494,2195.5,2194.0,2.43000057]
[1770149301483,2.40915696,2195.8,2194.2,2.37721509]
[1770149301681,2.40915696,2195.4,2194.2,2.37721509]
[1770149303178,2.63726696,2194.7,2193.7,0.00402441]
[1770149303383,2.64182441,2194.7,2193.7,0.00402441]
[1770149303577,2.40915696,2194.5,2193.7,0.00402441]
[1770149303775,0.22812,2194.6,2193.7,0.00402441]
[1770149303983,0.00455745,2194.7,2193.7,2.3812395]
[1770149305376,2.41371441,2194.7,2193.7,0.00402441]
[1770149305583,2.64182441,2194.7,2193.7,0.00402441]
[1770149305783,0.00455745,2194.7,2193.7,2.3812395]
[1770149306879,0.00455745,2194.7,2193.7,0.00402441]
[1770149306880,2.41371441,2194.7,2193.7,0.00402441]
[1770149307082,2.40915696,2194.4,2193.1,2.37721509]
[1770149307387,2.40915696,2194.3,2193.1,2.37721509]
[1770149308191,2.63730696,2194.3,2193.1,2.37721509]
[1770149308388,2.63730696,2194.3,2193.1,2.38059912]
[1770149308789,2.40915696,2194.6,2193.1,2.38059912]
[1770149309589,0.00455745,2194.7,2193.4,2.37721509]
[1770149309783,0.00455745,2194.7,2193.6,2.37721509]
[1770149310194,0.00455745,2194.7,2193.8,2.37721509]
[1770149310490,2.40915696,2195.3,2193.8,2.37721509]
[1770149310686,2.40915696,2195.4,2193.8,2.60540509]
[1770149310888,42.90960809,2195.7,2194.1,2.37721509]
[1770149311088,52.41938918,2196.3,2194.6,2.37721509]
[1770149311287,2.40915696,2196.2,2194.6,2.37721509]
[1770149312094,2.40915696,2196.0,2194.6,2.37721509]
[1770149313393,0.22796,2196.1,2194.6,2.37721509]
[1770149313789,40.50045113,2196.2,2194.6,2.37721509]
[1770149314092,0.00446439,2196.3,2194.8,2.37721509]
[1770149314296,2.40915696,2196.2,2194.8,2.38046885]
[1770149314494,2.40915696,2196.1,2194.8,2.38046885]
[1770149314690,2.63716696,2195.6,2194.8,0.00325376]
[1770149315090,2.40915696,2195.6,2194.8,0.00325376]
[1770149315290,40.50045113,2195.9,2194.8,2.38046885]
[1770149315587,2.40915696,2195.9,2194.8,2.38046885]
[1770149315791,2.40915696,2195.8,2194.8,0.00325376]
[1770149316592,2.40915696,2195.8,2194.8,2.38046885]
[1770149317695,2.40915696,2195.5,2194.8,0.00325376]
[1770149318291,2.40915696,2195.4,2194.1,2.37721509]
[1770149318498,42.90960809,2195.3,2194.1,2.37721509]
[1770149318800,2.40915696,2195.2,2194.1,2.37721509]
[1770149319096,2.40915696,2195.1,2194.1,2.37721509]
[1770149319393,2.40915696,2195.1,2194.1,2.38190281]
[1770149319995,43.27945113,2195.2,2194.1,2.38190281]
[1770149320498,45.69160809,2195.4,2194.1,2.38190281]
[1770149320700,2.782,2195.4,2194.3,2.37721509]
[1770149320991,5.19115696,2195.4,2194.3,2.37721509]
[1770149321592,2.40915696,2195.3,2194.1,0.00468772]
[1770149321794,42.90960809,2195.1,2194.1,0.00468772]
[1770149321994,2.40915696,2194.9,2194.1,0.00468772]
[1770149322198,2.40915696,2194.7,2193.7,6.48021509]
[1770149322600,2.40915696,2194.6,2193.3,2.37721509]
[1770149322899,40.72855113,2194.7,2193.3,2.37721509]
[1770149323299,0.23343716,2194.7,2193.3,2.37721509]
[1770149323500,43.14304525,2194.7,2193.3,2.37721509]
[1770149324100,2.63726696,2194.6,2193.3,2.37721509]
[1770149324996,0.22812,2194.5,2193.3,2.37721509]
[1770149325200,2.40915696,2193.8,2192.6,2.37721509]
[1770149325505,2.40915696,2193.6,2192.6,2.37721509]
[1770149325804,2.40915696,2193.6,2192.2,2.37721509]
[1770149326004,2.40915696,2193.4,2192.2,2.37721509]
[1770149326302,2.831,2193.3,2192.2,2.37721509]
[1770149326503,2.833,2193.4,2192.2,2.37721509]
[1770149326694,5.24215696,2193.4,2192.2,2.37721509]
[1770149326895,2.833,2193.4,2192.2,2.37721509]
[1770149327597,5.24215696,2193.4,2192.2,2.37721509]
[1770149328304,2.833,2193.4,2192.2,2.37721509]
[1770149330108,5.24215696,2193.4,2192.2,2.37721509]
[1770149330500,2.35979057,2193.3,2192.2,2.37721509]
[1770149331407,5.0760918,2193.6,2192.2,2.37721509]
[1770149331608,5.20879057,2193.6,2192.2,2.37721509]
[1770149332205,2.35979057,2193.5,2192.2,2.37721509]
[1770149332802,2.94451123,2193.7,2192.2,2.60557509]
[1770149332803,0.22821,2193.7,2192.2,2.60557509]
[1770149333103,2.35979057,2193.7,2192.3,0.22835]
[1770149333309,2.35979057,2193.7,2191.6,2.674]
[1770149333310,2.3763,2193.6,2192.4,2.72645612]
[1770149333708,2.3763,2193.6,2192.6,2.49811612]
[1770149333904,2.3763,2193.6,2192.6,2.72643612]
[1770149336811,2.3763,2193.6,2192.8,2.36670239]
[1770149337509,2.35134534,2193.5,2192.3,2.36670239]
[1770149338112,2.35134534,2193.3,2192.3,2.36670239]
[1770149338314,2.35134534,2193.1,2191.8,2.36670239]
[1770149338513,2.35455003,2193.1,2191.8,2.36670239]
[1770149339714,2.35455003,2193.1,2191.8,2.59510239]
[1770149340309,2.3763,2193.6,2192.5,2.59503239]
[1770149340511,2.3763,2193.6,2192.7,2.59500239]
[1770149340715,2.3763,2193.6,2192.9,2.36670239]
[1770149341406,2.35134534,2194.5,2193.2,2.59495239]
[1770149341609,6.75715837,2195.1,2193.7,2.59490239]
[1770149341610,2.35134534,2195.1,2193.7,2.59490239]
[1770149341817,2.57940534,2195.1,2193.7,2.36670239]
[1770149342516,2.35134534,2194.9,2193.7,0.00447084]
[1770149342811,2.35134534,2194.9,2189.4,0.22865]
[1770149342812,2.35134534,2194.2,2192.6,2.36670239]
[1770149343011,2.35134534,2194.0,2192.6,2.36670239]
[1770149343315,2.35134534,2193.8,2192.6,2.36670239]
[1770149343708,2.35134534,2193.8,2192.6,2.36984976]
[1770149344316,2.35134534,2193.8,2192.6,0.00314737]
[1770149344517,2.35134534,2193.6,2192.6,0.00314737]
[1770149344816,2.35134534,2193.6,2192.6,2.36984976]
[1770149345011,2.35134534,2193.6,2192.6,0.00314737]
[1770149345216,2.35134534,2193.4,2192.1,2.59507239]
[1770149345618,2.35134534,2193.4,2192.1,2.36670239]
[1770149345619,3.3676,2193.4,2192.1,2.36670239]
[1770149346117,3.37296188,2193.4,2192.1,2.36670239]
[1770149346519,5.72430722,2193.4,2192.1,2.36670239]
[1770149346920,2.35134534,2193.3,2192.1,2.36670239]
[1770149347121,3.37296188,2193.4,2192.1,2.36670239]
[1770149347821,3.37296188,2193.4,2192.3,2.36670239]
[1770149348215,5.72430722,2193.4,2192.3,2.36670239]
[1770149349714,2.35134534,2193.3,2192.3,2.36670239]
[1770149350520,3.37296188,2193.4,2192.3,2.36670239]
[1770149350721,3.37296188,2193.4,2192.3,2.59505239]
[1770149351825,3.37296188,2193.4,2192.5,2.36670239]
[1770149352725,2.71630123,2193.3,2192.2,2.36670239]
[1770149352924,6.08926311,2193.4,2192.2,2.36670239]
[1770149353224,2.71630123,2193.3,2192.2,2.36670239]
[1770149353525,2.35134534,2193.2,2192.2,2.36670239]
[1770149353726,2.35134534,2193.0,2192.0,2.36670239]
[1770149354223,2.35134534,2192.9,2192.0,2.36670239]
[1770149354525,2.71630123,2192.8,2192.0,2.36670239]
[1770149355122,5.06764657,2192.9,2192.0,2.36670239]
[1770149355323,2.71630123,2192.8,2192.0,2.36670239]
[1770149357024,5.06764657,2192.8,2191.9,2.676]
[1770149357827,2.35134534,2192.7,2191.9,2.676]
[1770149358222,2.35134534,2192.7,2191.8,4.106]
[1770149358428,2.71630123,2192.5,2191.4,2.36670239]
[1770149358727,2.71630123,2192.8,2191.9,2.36670239]
[1770149358920,2.71630123,2192.9,2192.1,2.36670239]
[1770149359729,2.71630123,2192.9,2192.3,2.36670239]
[1770149360028,2.71630123,2192.9,2192.0,2.36670239]
[1770149360323,2.35134534,2192.8,2192.0,2.36670239]
[1770149360925,2.43388971,2192.7,2191.7,5.06872086]
[1770149361321,2.71630123,2192.6,2191.7,5.06872086]
[1770149361522,2.43388971,2192.5,2191.1,2.39272086]
[1770149361726,5.15019094,2192.5,2191.4,2.39272086]
[1770149362125,5.15019094,2192.5,2191.6,2.39272086]
[1770149362326,2.71630123,2192.5,2191.6,2.39272086]
[1770149362527,2.71630123,2192.7,2192.1,2.39272086]
[1770149362827,2.71630123,2192.9,2192.1,2.39272086]
[1770149363222,2.71630123,2192.9,2192.1,5.07171777]
[1770149364623,2.71630123,2193.0,2192.4,2.39272086]
[1770149364828,2.71630123,2193.1,2192.4,2.39272086]
[1770149365228,2.71630123,2193.2,2192.5,5.07171777]
[1770149365532,2.71630123,2193.2,2192.5,2.39272086]
[1770149365828,2.71630123,2193.3,2192.6,2.39272086]
[1770149366225,2.71630123,2193.3,2192.6,5.07171777]
[1770149366430,2.71630123,2193.3,2192.4,2.39272086]
[1770149366735,2.71630123,2193.3,2192.6,2.39272086]
[1770149366929,2.43388971,2193.2,2192.3,2.39272086]
[1770149367130,2.43388971,2193.2,2192.4,2.39272086]
[1770149367331,2.71630123,2193.3,2192.4,5.07171777]
[1770149368139,2.71630123,2193.2,2192.4,5.07171777]
[1770149368339,2.71630123,2193.2,2192.5,2.67899691]
[1770149368641,2.71630123,2193.2,2192.5,2.39272086]
[1770149368838,0.00536188,2193.4,2192.6,2.39272086]
[1770149369135,2.71630123,2193.6,2192.9,2.39272086]
[1770149369340,2.71630123,2193.8,2192.9,2.39272086]
[1770149369641,2.71630123,2193.8,2192.4,2.677]
[1770149369642,2.43388971,2193.5,2192.5,2.39272086]
[1770149370140,2.43980914,2193.5,2192.5,5.07701638]
[1770149370940,7.67111037,2193.5,2192.5,5.07701638]
[1770149371334,7.67111037,2193.5,2192.6,2.39272086]
[1770149371538,5.23722066,2193.5,2192.8,2.39272086]
[1770149371836,2.29689479,2193.5,2193.0,2.39272086]
[1770149372036,2.29689479,2193.5,2193.3,2.39272086]
[1770149372243,1.56885113,2193.5,2193.3,2.39272086]
[1770149372438,1.56885113,2193.5,2193.4,2.67899691]
[1770149372838,1.57289942,2193.5,2193.0,2.39272086]
[1770149373043,1.57289942,2193.5,2193.2,5.01911865]
[1770149373243,2.72475146,2194.3,2193.6,2.62093086]
[1770149373444,42.93434084,2194.6,2193.7,2.39272086]
[1770149373644,42.93434084,2194.9,2193.9,2.39272086]
[1770149373844,2.43388971,2194.9,2194.1,5.01911865]
[1770149374145,2.43714189,2194.9,2194.2,2.62639779]
[1770149374840,2.43714189,2194.9,2194.1,0.00347582]
[1770149375543,2.43388971,2194.8,2194.1,0.00347582]
[1770149376946,2.43388971,2194.8,2194.2,2.62639779]
[1770149377746,0.00325218,2194.9,2194.5,2.62639779]
[1770149377939,0.00325218,2194.9,2194.4,2.62639779]
[1770149378142,0.00325218,2194.9,2194.6,2.62639779]
[1770149378343,0.00325218,2194.9,2194.4,5.01911865]
[1770149378739,0.00325218,2194.9,2194.6,2.62639779]
[1770149378944,40.50045113,2195.6,2194.7,2.62639779]
[1770149379150,2.43388971,2195.5,2194.6,2.39272086]
[1770149379544,2.43388971,2195.5,2194.6,5.01911865]
[1770149379749,2.43388971,2195.2,2194.1,0.00347582]
[1770149379945,2.43388971,2195.1,2194.1,2.39619668]
[1770149380451,2.43388971,2194.8,2193.8,2.39272086]
[1770149380645,2.43388971,2194.8,2193.2,2.39272086]
[1770149380646,2.66202971,2194.4,2193.2,2.39272086]
[1770149381541,2.43388971,2194.2,2193.2,0.00533694]
[1770149381745,2.43388971,2194.0,2193.2,0.00533694]
[1770149382346,2.43388971,2194.3,2193.2,2.3980578]
[1770149384648,2.43388971,2194.6,2193.2,2.6263178]
[1770149384853,2.43388971,2194.6,2193.4,2.39272086]
[1770149385347,2.43388971,2194.6,2193.4,2.62095086]
[1770149385552,8.22950997,2194.9,2193.6,2.39272086]
[1770149385748,2.43388971,2194.9,2193.6,2.39272086]
[1770149386052,2.4389454,2195.2,2194.0,2.39272086]
[1770149386947,0.00505569,2195.2,2194.0,2.62089086]
[1770149387148,0.00505569,2195.2,2194.2,2.62087086]
[1770149388252,0.00505569,2195.2,2194.3,2.675]
[1770149388452,0.00505569,2195.2,2194.4,2.39272086]
[1770149388846,2.4389454,2195.2,2194.3,2.675]
[1770149389454,2.4389454,2195.2,2194.1,2.39272086]
[1770149389656,2.6669954,2195.2,2193.8,2.39272086]
[1770149389856,2.66195971,2195.0,2193.8,2.39272086]
[1770149390251,2.43388971,2194.8,2193.8,2.39272086]
[1770149391454,2.4196204,2195.1,2193.8,2.39272086]
[1770149394257,0.00505569,2195.2,2194.0,2.68511333]
[1770149395448,2.35144195,2195.2,2194.0,2.68511333]
[1770149396548,2.35144195,2195.2,2194.0,2.45694333]
[1770149396959,2.34638626,2195.1,2194.0,2.45694333]
[1770149397354,2.34638626,2194.9,2194.0,2.45694333]
[1770149398358,42.85189308,2195.2,2194.0,2.45694333]
[1770149398655,0.00505569,2195.2,2194.0,2.68511333]
[1770149399653,0.00505569,2195.2,2194.0,2.45694333]
[1770149399848,2.35144195,2195.2,2194.0,2.45694333]
[1770149400154,2.35144195,2195.2,2194.0,2.68511333]
[1770149400454,2.35144195,2195.2,2194.0,2.45694333]
[1770149401155,3.111,2195.6,2193.5,6.68657828]
[1770149401156,2.34638626,2196.1,2195.0,2.45694333]
[1770149401360,2.34638626,2196.4,2195.3,2.68498333]
[1770149401562,42.84683739,2196.4,2195.4,2.45694333]
[1770149401856,42.84683739,2197.0,2195.7,2.45694333]
[1770149402055,2.35212902,2197.0,2195.7,2.46153164]
[1770149402354,2.35212902,2197.0,2195.9,2.45694333]
[1770149402556,2.35212902,2197.0,2195.7,0.00458831]
[1770149402557,2.73436302,2197.0,2195.7,0.00458831]
[1770149402753,2.34638626,2196.9,2195.7,0.00458831]
[1770149402954,2.34638626,2196.6,2195.7,0.00458831]
[1770149403262,2.34638626,2196.4,2195.1,2.45694333]
[1770149403760,2.34638626,2196.4,2195.4,2.45694333]
[1770149403963,2.34638626,2196.7,2195.4,2.45694333]
[1770149404261,2.34638626,2196.5,2195.4,0.00558088]
[1770149405457,2.34638626,2196.5,2195.4,2.46252421]
[1770149406563,2.34638626,2196.8,2195.6,2.45694333]
[1770149406763,2.34638626,2196.8,2195.5,0.22802]
[1770149406964,2.34638626,2196.8,2195.5,2.68496333]
[1770149407565,2.57426626,2196.8,2195.4,0.00558088]
[1770149408164,2.34638626,2196.6,2195.4,0.00558088]
[1770149408369,2.57435626,2196.0,2194.6,2.45694333]
[1770149408665,2.34638626,2195.7,2194.3,5.12994333]
[1770149409258,2.34638626,2195.7,2194.3,2.673]
[1770149409460,2.34638626,2195.7,2194.4,2.45694333]
[1770149411261,2.34638626,2195.7,2194.4,2.68507333]
[1770149412064,2.34638626,2195.5,2194.3,0.00463995]
[1770149413367,2.34638626,2195.5,2194.4,2.68507333]
[1770149413866,2.34638626,2195.5,2194.5,2.68506333]
[1770149414069,2.34638626,2195.8,2194.7,2.45694333]
[1770149414270,2.34638626,2195.8,2194.8,2.673]
[1770149417170,2.34638626,2195.8,2194.3,5.36272328]
[1770149417370,2.34638626,2195.8,2194.4,2.45694333]
[1770149419067,2.34638626,2195.8,2194.7,2.68504333]
[1770149419265,2.34638626,2195.8,2194.3,2.67763995]
[1770149419266,2.34638626,2196.1,2194.9,2.45694333]
[1770149419469,2.34638626,2196.1,2194.3,2.67763995]
[1770149419470,2.34638626,2196.1,2195.1,2.45694333]
[1770149420371,2.53560434,2196.4,2195.1,2.68500333]
[1770149421170,2.53560434,2196.4,2195.3,2.52427965]
[1770149421571,2.53560434,2196.7,2195.7,2.75226965]
[1770149422374,2.5413471,2197.0,2195.9,2.75224965]
[1770149422568,2.5413471,2197.0,2195.9,2.75775286]
[1770149422870,2.5413471,2197.0,2195.9,0.00550321]
[1770149423768,0.00574276,2197.0,2195.9,2.52978286]
[1770149424269,0.00574276,2197.0,2196.2,2.52427965]
[1770149425376,2.5413471,2197.0,2196.1,0.22795]
[1770149426074,0.00574276,2197.0,2196.1,2.75222965]
[1770149426768,2.5413471,2197.0,2196.0,2.673]
[1770149427173,2.5413471,2197.0,2195.9,0.00550321]
[1770149427771,2.5413471,2197.0,2195.9,2.52978286]
[1770149428169,2.5413471,2197.0,2196.0,0.22797]
[1770149428368,2.5413471,2197.0,2196.0,2.75224965]
[1770149429175,0.00574276,2197.0,2196.3,0.22793]
[1770149429372,0.00574276,2197.0,2196.0,2.52427965]
[1770149429571,2.5413471,2197.0,2195.9,0.00550321]
[1770149429874,2.53560434,2196.8,2195.9,0.00550321]
[1770149431270,2.53560434,2196.8,2195.5,2.90102]
[1770149431271,2.53560434,2196.6,2195.1,2.52427965]
[1770149431469,2.53560434,2196.3,2194.9,2.52427965]
[1770149431874,2.76354434,2196.3,2194.9,2.52427965]
[1770149432068,2.53560434,2196.1,2194.8,4.101]
[1770149432268,2.53560434,2196.1,2194.8,4.10534606]
[1770149432672,2.53560434,2196.1,2194.8,4.33343606]
[1770149433074,2.53560434,2196.1,2194.8,6.85771571]
[1770149433472,2.53560434,2196.1,2194.8,0.00434606]
[1770149433679,2.53560434,2195.4,2194.0,2.52427965]
[1770149433880,2.53560434,2195.2,2193.7,2.52427965]
[1770149434072,2.53560434,2195.1,2193.7,2.52427965]
[1770149434271,5.47601728,2195.0,2193.5,2.672]
[1770149434476,2.53560434,2194.8,2193.5,2.672]
[1770149434675,2.54099005,2194.8,2193.5,2.672]
[1770149435369,2.53560434,2194.7,2193.5,2.672]
[1770149439175,2.53560434,2194.7,2193.1,2.52427965]
[1770149439473,2.53560434,2194.3,2192.8,2.52427965]
[1770149439878,2.53560434,2193.9,2192.6,4.102]
[1770149440379,2.53560434,2193.6,2192.6,4.102]
[1770149441675,2.76382434,2193.6,2192.0,0.22838]